bitfinex-derivatives/quotes_ETHF0:USTF0_20250102
["timestamp","ask_amount","ask_price","bid_price","bid_amount"]
[1735830730078,0.28709,3486.2,3485.9,3.49491]
[1735830730489,1.372,3486.3,3485.9,3.49491]
[1735830730490,1.65908,3486.3,3486.0,0.2871]
[1735830730777,1.372,3486.3,3485.9,3.2078]
[1735830731278,0.2871,3486.0,3485.9,3.2078]
[1735830731780,0.28717,3485.2,3484.9,3.2078]
[1735830731982,0.28718,3485.1,3484.8,0.9005]
[1735830732579,4.5788,3485.5,3484.5,3.2078]
[1735830733076,4.5788,3485.5,3484.9,3.2078]
[1735830733479,0.28718,3485.1,3484.8,0.2872]
[1735830733780,1.371,3485.5,3484.7,3.2078]
[1735830733974,1.371,3485.5,3485.2,3.2078]
[1735830734174,0.4467,3485.9,3484.5,0.71806]
[1735830734175,3.6545,3485.9,3484.7,3.2078]
[1735830734381,0.4467,3485.9,3485.4,0.28715]
[1735830734575,0.28713,3485.7,3485.4,0.28715]
[1735830734780,0.28713,3485.7,3485.3,0.28715]
[1735830734979,3.2078,3485.8,3484.7,3.2078]
[1735830735182,0.28715,3485.5,3485.1,0.28717]
[1735830735485,3.2078,3485.8,3485.0,0.28718]
[1735830735682,3.2078,3485.8,3484.7,3.2078]
[1735830735901,0.28717,3485.3,3485.0,0.28718]
[1735830736085,3.2078,3485.8,3484.7,3.2078]
[1735830736385,0.28716,3485.3,3485.0,0.28718]
[1735830736686,1.371,3485.2,3484.1,3.6638]
[1735830736883,0.28723,3484.5,3484.2,0.28725]
[1735830737081,0.28722,3484.6,3484.3,0.28724]
[1735830737280,0.28721,3484.7,3484.4,0.28723]
[1735830737579,3.2078,3484.9,3484.1,3.8934]
[1735830737784,3.2078,3484.9,3484.2,0.28724]
[1735830737986,3.2078,3484.9,3484.1,4.18065]
[1735830738185,3.2078,3484.9,3484.1,3.8934]
[1735830738380,0.71795,3485.1,3484.1,3.8934]
[1735830738381,1.00513,3485.1,3484.2,0.28724]
[1735830738686,0.28724,3484.4,3484.1,4.18066]
[1735830738885,0.28725,3484.2,3484.1,3.4374]
[1735830739391,0.28725,3484.2,3484.1,0.2296]
[1735830739986,0.28734,3483.1,3483.0,3.2078]
[1735830740194,4.5788,3483.5,3482.6,3.6591]
[1735830740382,0.439,3483.4,3482.6,3.6591]
[1735830740783,3.2078,3484.0,3483.0,3.2078]
[1735830740989,0.28728,3483.9,3483.5,0.2873]
[1735830741189,1.371,3484.3,3483.5,0.2873]
[1735830741391,0.28727,3484.0,3483.6,0.2873]
[1735830741590,1.371,3484.3,3483.7,0.28728]
[1735830741794,0.72623,3484.5,3484.1,0.28725]
[1735830741990,0.28724,3484.4,3484.0,0.28726]
[1735830742185,3.6468,3484.5,3483.6,0.4513]
[1735830742387,3.6468,3484.5,3483.9,0.28727]
[1735830742588,0.28726,3484.1,3483.7,0.28729]
[1735830742791,0.439,3484.5,3483.6,0.4513]
[1735830743085,0.28722,3484.6,3484.2,0.28724]
[1735830743595,4.5788,3484.9,3483.8,3.2078]
[1735830743795,0.28724,3484.4,3484.1,0.28726]
[1735830743999,0.28724,3484.3,3484.0,0.28727]
[1735830744185,4.5788,3484.9,3483.8,3.2078]
[1735830744387,0.28724,3484.4,3483.8,3.2078]
[1735830744886,3.2078,3484.4,3483.8,3.2078]
[1735830745079,0.28728,3483.9,3483.8,3.2078]
[1735830745294,3.2078,3484.4,3483.2,3.2078]
[1735830745487,3.46783658,3484.6,3483.2,3.2078]
[1735830745488,3.2078,3484.0,3483.2,3.2078]
[1735830745691,0.28729,3483.8,3483.4,0.28731]
[1735830745888,0.28729,3483.8,3483.2,3.2078]
[1735830745889,3.2078,3484.0,3483.2,3.2078]
[1735830746090,0.28728,3483.9,3483.6,0.2873]
[1735830746294,0.28728,3483.8,3483.5,0.28731]
[1735830746704,3.2078,3484.4,3483.2,3.2078]
[1735830746991,0.28725,3484.3,3484.1,0.28726]
[1735830747191,0.28725,3484.3,3484.0,0.28727]
[1735830747390,3.2078,3484.4,3483.6,3.2078]
[1735830747597,3.49504,3484.4,3484.1,0.28726]
[1735830747790,3.2078,3484.4,3483.6,3.627]
[1735830748001,0.28727,3484.0,3483.6,3.627]
[1735830748292,0.28731,3483.6,3483.3,0.28732]
[1735830748594,3.2078,3484.0,3483.2,3.2078]
[1735830748792,0.2873,3483.7,3483.4,0.28731]
[1735830748992,0.2873,3483.7,3483.3,0.28732]
[1735830749298,3.2078,3484.0,3483.2,3.2078]
[1735830749496,0.28731,3483.5,3483.3,0.28732]
[1735830749692,0.28731,3483.5,3482.6,0.4192]
[1735830749693,3.2078,3483.6,3482.8,3.2078]
[1735830749893,3.92607,3483.6,3482.6,0.4192]
[1735830750094,3.92607,3483.6,3483.0,0.28735]
[1735830750095,0.28734,3483.2,3483.0,0.28735]
[1735830750295,3.2078,3483.6,3482.6,0.4192]
[1735830750498,3.2078,3483.6,3482.9,0.28735]
[1735830750499,0.28731,3483.5,3482.9,0.28735]
[1735830750797,0.28731,3483.5,3482.6,0.4192]
[1735830750798,0.28734,3483.1,3482.6,0.4192]
[1735830751000,0.28735,3483.1,3482.8,0.28736]
[1735830751503,0.28734,3483.1,3482.8,0.28736]
[1735830752299,0.28734,3483.1,3482.6,0.4192]
[1735830752594,3.2078,3484.0,3482.9,3.2078]
[1735830752992,3.2078,3484.0,3483.2,0.71834]
[1735830753196,3.2078,3484.0,3483.9,0.28728]
[1735830753394,3.2078,3484.0,3483.2,5.71834]
[1735830753591,2.24548623,3484.5,3484.2,0.28725]
[1735830753795,2.24548623,3484.5,3483.7,3.2078]
[1735830754001,0.28726,3484.1,3483.9,0.28727]
[1735830754203,2.24548623,3484.5,3483.7,3.2078]
[1735830754497,0.28728,3483.8,3483.7,3.2078]
[1735830754694,0.28731,3483.5,3483.3,0.28733]
[1735830755095,3.2078,3484.0,3483.1,3.2078]
[1735830755295,1.369,3484.2,3483.1,3.2078]
[1735830755490,0.2873,3483.7,3483.5,0.2873]
[1735830755692,3.2078,3484.0,3483.1,3.2078]
[1735830755903,0.28729,3483.8,3483.6,0.2873]
[1735830756202,0.2873,3483.7,3483.5,0.2873]
[1735830756398,1.369,3484.2,3483.5,3.2078]
[1735830756597,0.28726,3484.1,3483.9,0.28727]
[1735830756806,1.369,3484.2,3483.5,3.2078]
[1735830757003,0.28727,3484.0,3483.8,0.28728]
[1735830757199,2.24548623,3484.7,3483.9,3.2078]
[1735830757406,2.24548623,3484.7,3484.6,0.28722]
[1735830758300,2.24548623,3484.7,3484.3,3.92591]
[1735830758301,1.7929,3485.5,3484.3,3.92591]
[1735830758595,0.28718,3485.1,3484.2,0.8871]
[1735830758801,6.7929,3485.5,3483.6,4.40345688]
[1735830758802,0.28729,3483.7,3483.6,4.40345688]
[1735830759310,0.28733,3483.3,3482.8,0.4372]
[1735830759605,3.2078,3483.8,3482.8,0.4372]
[1735830759801,0.28731,3483.5,3483.3,0.28732]
[1735830760110,0.28732,3483.4,3483.2,0.28734]
[1735830760415,3.2078,3483.7,3483.1,3.49514]
[1735830760416,0.28733,3483.3,3483.1,3.49514]
[1735830760611,0.28732,3483.4,3483.2,0.28733]
[1735830760904,0.28732,3483.5,3483.3,0.28733]
[1735830761114,3.2078,3483.7,3483.1,3.2078]
[1735830761306,0.28734,3483.2,3483.1,3.2078]
[1735830761818,0.28733,3483.3,3483.1,3.49514]
[1735830762114,0.28734,3483.2,3483.1,3.2078]
[1735830762411,0.28736,3482.9,3482.8,0.4372]
[1735830762609,0.28736,3483.0,3482.8,0.72457]
[1735830763898,0.28735,3483.1,3482.9,0.28736]
[1735830764098,3.2078,3483.3,3482.6,3.2078]
[1735830764402,0.28737,3482.9,3482.6,3.49518]
[1735830764710,0.28736,3482.9,3482.7,0.28737]
[1735830764910,3.2078,3483.3,3482.7,0.28737]
[1735830765113,0.28736,3483.0,3482.6,3.2078]
[1735830765405,4.07358623,3484.1,3482.7,0.71845]
[1735830765406,5.91238623,3484.1,3482.7,0.71845]
[1735830765603,0.28727,3484.0,3483.5,3.2078]
[1735830765798,2.24548623,3484.0,3483.5,3.2078]
[1735830766013,2.24548623,3484.0,3483.9,0.28728]
[1735830766205,2.24548623,3484.0,3483.9,3.49508]
[1735830766910,2.24548623,3484.0,3483.9,0.28728]
[1735830767112,2.24548623,3484.0,3483.9,3.49508]
[1735830767409,3.2078,3484.5,3483.9,0.28727]
[1735830767614,0.28726,3484.1,3483.9,0.28727]
[1735830767815,0.28726,3484.1,3483.7,0.4604]
[1735830768012,0.28729,3483.8,3483.7,0.4604]
[1735830768213,3.2078,3484.6,3483.6,0.4548]
[1735830768214,0.28729,3483.7,3483.6,0.4548]
[1735830768404,0.28729,3483.7,3483.6,0.7421]
[1735830768608,0.28729,3483.7,3483.6,0.4548]
[1735830768808,0.28729,3483.7,3483.6,0.7421]
[1735830769213,0.7181,3484.4,3483.6,0.7421]
[1735830769214,0.28724,3484.4,3483.8,0.28728]
[1735830769414,0.28728,3483.9,3483.8,0.28728]
[1735830769609,0.28728,3483.9,3483.6,0.4548]
[1735830769917,0.28728,3483.9,3483.7,0.28729]
[1735830770116,0.71808,3484.5,3483.7,0.28729]
[1735830770414,0.28727,3484.1,3484.0,0.28727]
[1735830770614,0.28728,3483.9,3483.8,0.28728]
[1735830771113,0.71808,3484.5,3483.8,0.28728]
[1735830771303,0.28727,3484.0,3483.8,0.28728]
[1735830771507,0.28723,3484.5,3484.3,0.28724]
[1735830771706,3.92578,3485.0,3483.9,3.2078]
[1735830771912,0.28726,3484.2,3484.0,0.28727]
[1735830772117,0.28726,3484.2,3483.9,3.2078]
[1735830772410,5.63104254,3484.7,3484.2,0.28725]
[1735830772610,5.63104254,3484.7,3483.9,3.2078]
[1735830772812,9.44317189,3485.1,3484.3,3.2078]
[1735830773013,2.53268623,3484.9,3484.7,0.2872]
[1735830773212,9.44317189,3485.1,3484.9,0.28719]
[1735830773213,6.07494254,3485.1,3484.9,0.28719]
[1735830773517,2.53264623,3485.3,3485.1,0.28717]
[1735830773919,2.53265623,3485.3,3485.2,0.28717]
[1735830774120,2.24548623,3485.3,3485.2,0.28717]
[1735830774715,2.67128623,3486.1,3485.0,0.4511]
[1735830775020,2.67128623,3486.1,3486.0,0.2871]
[1735830775316,2.24548623,3486.1,3486.0,0.2871]
[1735830776322,2.24548623,3486.1,3485.7,3.2078]
[1735830776323,2.24548623,3487.1,3485.7,3.2078]
[1735830776510,4.5768,3486.9,3485.7,3.2078]
[1735830776711,0.2871,3486.1,3486.0,0.2871]
[1735830776907,0.2871,3486.1,3485.7,3.2078]
[1735830777119,0.28709,3486.2,3486.0,0.2871]
[1735830777416,0.28706,3486.6,3485.8,0.71781]
[1735830777617,0.28706,3486.5,3486.3,0.28707]
[1735830777810,0.28707,3486.4,3486.2,0.28708]
[1735830778117,0.28707,3486.4,3485.8,0.4262]
[1735830778118,3.2078,3486.4,3485.8,0.4262]
[1735830778319,3.92557,3486.0,3485.2,0.28717]
[1735830778619,0.28715,3485.5,3485.2,0.28717]
[1735830778816,0.28717,3485.3,3485.1,3.2078]
[1735830779010,0.28716,3485.4,3485.2,0.28717]
[1735830779215,0.443,3485.9,3485.1,3.2078]
[1735830779512,0.28715,3485.4,3485.2,0.28717]
[1735830779913,0.28709,3486.2,3485.2,0.71793]
[1735830780114,2.53255623,3486.4,3486.2,0.28708]
[1735830780310,2.53255623,3486.4,3485.8,3.2078]
[1735830780311,2.24548623,3486.4,3485.8,3.2078]
[1735830780620,0.28708,3486.3,3486.1,0.28709]
[1735830780926,0.28709,3486.2,3485.8,3.2078]
[1735830781122,0.28709,3486.2,3486.0,0.2871]
[1735830781317,3.2078,3486.5,3486.1,0.28709]
[1735830781613,0.28707,3486.4,3486.2,0.28708]
[1735830781812,3.2078,3486.5,3486.4,0.28707]
[1735830782021,3.49482,3487.1,3486.8,0.28704]
[1735830782216,0.28703,3486.9,3486.7,0.28704]
[1735830782521,3.2078,3487.1,3486.3,0.4594]
[1735830782716,3.2078,3486.6,3486.2,0.28708]
[1735830782917,3.2078,3486.6,3485.7,0.28713]
[1735830782918,0.28712,3485.9,3485.7,0.28713]
[1735830783221,0.28712,3485.8,3485.6,0.72523]
[1735830783421,0.28709,3486.2,3486.0,0.2871]
[1735830783621,3.2078,3486.2,3485.3,3.2078]
[1735830784025,0.448,3486.5,3485.1,0.438]
[1735830784026,3.2078,3485.8,3485.1,0.438]
[1735830784209,0.28717,3485.3,3484.8,7.61125688]
[1735830784415,0.28717,3485.3,3485.2,0.28717]
[1735830784615,3.2078,3485.8,3484.8,7.61125688]
[1735830784813,3.2078,3485.8,3484.8,3.2078]
[1735830784814,0.28719,3484.9,3484.8,3.2078]
[1735830785215,0.28719,3485.0,3484.8,3.495]
[1735830785418,0.28719,3484.9,3484.8,3.2078]
[1735830786019,3.6558,3485.3,3484.8,3.2078]
[1735830786421,3.6558,3485.3,3484.3,3.2078]
[1735830786622,3.6558,3485.3,3484.5,0.28722]
[1735830786623,4.37371,3485.3,3484.5,0.28722]
[1735830786924,4.37371,3485.3,3484.3,3.2078]
[1735830786925,0.28723,3484.5,3484.3,3.2078]
[1735830787224,3.2078,3484.8,3484.3,3.2078]
[1735830787225,0.28724,3484.4,3484.3,3.2078]
[1735830787427,0.28722,3484.6,3484.3,3.49504]
[1735830787622,0.28719,3485.0,3484.7,0.2872]
[1735830787926,3.19505788,3485.3,3484.8,0.2872]
[1735830787927,3.2078,3484.9,3484.8,0.2872]
[1735830788117,3.2078,3485.6,3484.7,3.2078]
[1735830788520,7.27458623,3486.0,3485.1,3.2078]
[1735830788927,5.0291,3486.0,3485.1,3.2078]
[1735830789124,2.24548623,3486.2,3485.5,3.2078]
[1735830789321,0.28712,3485.9,3485.6,0.28713]
[1735830789525,0.28712,3485.9,3485.5,3.2078]
[1735830789526,2.24548623,3486.2,3485.1,3.2078]
[1735830789721,0.28711,3485.9,3485.8,0.28712]
[1735830789928,2.24548623,3486.2,3485.1,8.2078]
[1735830790130,3.2078,3486.4,3486.3,0.28708]
[1735830790826,3.2078,3486.4,3485.8,0.4176]
[1735830791227,0.28708,3486.3,3486.2,0.28709]
[1735830791427,3.2078,3486.4,3486.3,0.28708]
[1735830791627,3.49487,3486.4,3486.3,0.28708]
[1735830791822,3.2078,3486.4,3486.3,0.28708]
[1735830792329,3.2078,3487.0,3485.9,3.2078]
[1735830792528,3.36822935,3487.8,3486.9,3.2078]
[1735830792829,3.36822935,3487.9,3487.6,0.28697]
[1735830794231,0.28691,3488.4,3487.6,0.71743]
[1735830794427,3.2078,3488.9,3487.6,0.71743]
[1735830794428,3.2078,3488.9,3487.9,3.2078]
[1735830794733,0.28693,3488.2,3487.9,3.49474]
[1735830794928,3.46425788,3488.8,3487.9,3.2078]
[1735830795129,0.28693,3488.1,3487.9,3.49474]
[1735830795433,3.2078,3489.4,3488.0,0.71735]
[1735830795727,3.2078,3489.4,3488.8,3.2078]
[1735830795930,0.28684,3489.3,3489.0,0.28685]
[1735830796126,0.28684,3489.3,3488.8,3.2078]
[1735830796127,3.2078,3489.4,3488.9,0.28686]
[1735830796324,0.28685,3489.2,3488.9,0.28686]
[1735830796524,0.28686,3489.0,3488.7,0.28688]
[1735830796727,3.2078,3489.4,3488.4,3.2078]
[1735830796935,0.28687,3488.9,3488.5,0.2869]
[1735830797136,0.28688,3488.7,3488.4,3.2078]
[1735830797334,3.2078,3488.9,3488.0,3.6419]
[1735830797635,0.28693,3488.2,3488.0,3.2078]
[1735830797838,0.28693,3488.1,3488.0,3.2078]
[1735830798231,3.2078,3488.5,3487.4,0.4182]
[1735830798432,3.2078,3488.5,3487.3,0.4302]
[1735830798626,3.2078,3488.5,3487.6,3.2078]
[1735830798833,3.2078,3488.5,3487.3,5.4302]
[1735830799029,0.28693,3488.1,3487.3,5.4302]
[1735830799246,0.28693,3488.1,3487.8,0.28696]
[1735830799430,0.28693,3488.1,3487.3,5.66390937]
[1735830799431,0.28691,3488.4,3488.0,0.28694]
[1735830799630,4.5758,3489.1,3488.0,3.2078]
[1735830799839,0.28689,3488.6,3488.3,0.28691]
[1735830800040,4.5758,3489.1,3487.9,3.2078]
[1735830800237,4.5758,3489.1,3488.3,3.2078]
[1735830800431,0.28686,3489.0,3488.7,0.28688]
[1735830800632,3.2078,3489.1,3488.3,3.2078]
[1735830800934,0.28689,3488.6,3488.4,0.2869]
[1735830801135,0.28686,3489.0,3488.5,0.2869]
[1735830801341,0.28688,3488.7,3487.9,3.2078]
[1735830801642,0.28688,3488.7,3488.4,0.2869]
[1735830801936,0.28688,3488.7,3488.3,3.2078]
[1735830802346,3.2078,3488.7,3487.8,3.2078]
[1735830802643,3.2078,3488.7,3487.9,0.28694]
[1735830802839,3.2078,3488.7,3487.8,3.2078]
[1735830803136,0.28689,3488.7,3488.4,0.2869]
[1735830803446,0.4178,3489.0,3488.4,0.2869]
[1735830803649,0.28687,3488.9,3488.2,0.28692]
[1735830803846,0.4178,3489.0,3487.8,3.2078]
[1735830804149,0.28692,3488.3,3488.1,0.28693]
[1735830804344,3.2078,3489.1,3487.8,3.2078]
[1735830804750,0.28692,3488.3,3488.1,0.28693]
[1735830805046,0.28691,3488.5,3487.8,3.2078]
[1735830805247,1.367,3489.0,3487.8,3.2078]
[1735830805449,0.28689,3488.6,3488.0,0.28693]
[1735830805645,0.28689,3488.6,3488.4,0.2869]
[1735830805846,3.2078,3488.7,3488.4,0.2869]
[1735830806041,0.2869,3488.5,3488.4,0.2869]
[1735830806244,3.2078,3488.7,3487.8,3.2078]
[1735830806551,0.28693,3488.2,3488.1,0.28693]
[1735830806940,0.28693,3488.2,3488.0,0.28693]
[1735830807249,0.28695,3487.9,3487.8,3.2078]
[1735830807850,0.28697,3487.7,3487.5,0.28698]
[1735830808554,0.28698,3487.5,3487.4,3.2078]
[1735830808740,0.71733,3488.1,3487.4,3.2078]
[1735830808945,0.28698,3487.6,3487.4,3.49479]
[1735830809146,0.28698,3487.5,3487.4,3.2078]
[1735830810047,0.71736,3488.0,3487.4,3.2078]
[1735830810348,4.5748,3488.2,3487.4,3.2078]
[1735830810349,1.367,3488.2,3487.4,3.2078]
[1735830810854,0.28698,3487.5,3487.4,3.2078]
[1735830811055,0.71734,3488.1,3487.4,3.2078]
[1735830811354,1.367,3488.2,3487.6,0.28697]
[1735830811355,0.28696,3487.9,3487.6,0.28697]
[1735830811552,1.367,3488.2,3487.5,0.28698]
[1735830811857,1.367,3488.2,3487.4,3.2078]
[1735830812053,0.28697,3487.7,3487.5,0.28698]
[1735830812556,0.28697,3487.7,3487.4,3.2078]
[1735830812557,0.28697,3487.6,3487.4,3.49479]
[1735830812860,0.4244,3488.6,3487.4,3.2078]
[1735830813061,3.49469,3488.7,3488.5,0.2869]
[1735830813353,3.2078,3488.7,3487.9,3.2078]
[1735830813562,3.2078,3488.7,3488.6,0.28689]
[1735830813750,3.2078,3488.7,3487.9,4.1043]
[1735830814056,0.2869,3488.6,3488.4,0.28691]
[1735830814356,3.2078,3488.7,3488.5,0.2869]
[1735830814550,3.2078,3489.1,3488.3,3.2078]
[1735830814752,0.28689,3488.8,3488.6,0.28689]
[1735830814952,0.28686,3489.0,3488.8,0.28687]
[1735830815152,3.2078,3489.1,3489.0,0.28686]
[1735830815553,3.49465,3489.1,3489.0,0.28686]
[1735830815951,0.28687,3489.0,3488.9,0.28686]
[1735830816354,3.49466,3489.1,3489.0,0.28686]
[1735830817052,3.2078,3489.1,3488.3,3.2078]
[1735830817247,0.28688,3488.8,3488.7,0.28688]
[1735830817453,0.28688,3488.9,3488.8,0.28687]
[1735830817756,0.28689,3488.7,3488.6,0.28689]
[1735830818355,3.2078,3489.1,3488.3,3.2078]
[1735830818660,0.28688,3488.8,3488.7,0.28688]
[1735830819355,0.28691,3488.4,3488.3,3.49471]
[1735830819553,0.28694,3488.0,3487.9,3.6432]
[1735830819763,3.92517,3488.0,3487.3,4.40345688]
[1735830819953,3.2078,3488.0,3487.3,4.40345688]
[1735830820155,0.28699,3487.6,3487.5,0.28698]
[1735830820361,0.28699,3487.5,3487.4,0.28699]
[1735830820563,3.2078,3488.0,3487.3,4.40345688]
[1735830820863,0.28698,3487.7,3487.6,0.28697]
[1735830821053,0.28695,3488.0,3487.9,0.28695]
[1735830821458,0.28698,3487.7,3487.6,0.28697]
[1735830821964,0.71735,3488.1,3487.2,1.16703]
[1735830822168,0.28695,3488.1,3488.0,0.28694]
[1735830822458,3.6483,3488.4,3488.0,0.28693]
[1735830822459,0.4405,3488.4,3488.0,0.28693]
[1735830822664,3.92493,3489.2,3488.2,3.2078]
[1735830822857,0.28687,3489.1,3489.0,0.28686]
[1735830823063,0.28687,3489.0,3488.9,0.28687]
[1735830823258,3.2078,3489.2,3488.3,0.8978]
[1735830823874,0.28688,3488.9,3488.8,0.28687]
[1735830824055,0.28688,3488.8,3488.7,0.28688]
[1735830824256,2.74705788,3489.4,3488.3,0.8978]
[1735830824257,3.2078,3489.0,3488.3,0.8978]
[1735830824560,0.28689,3488.7,3488.6,0.28689]
[1735830825258,5.95485788,3489.4,3488.4,0.71728]
[1735830825569,3.2078,3489.4,3488.3,9.1056]
[1735830825760,3.2078,3489.4,3488.7,3.2078]
[1735830825962,3.6337,3489.8,3488.9,0.71718]
[1735830826163,3.6337,3489.8,3488.9,0.28686]
[1735830826164,0.28687,3489.0,3488.9,0.28686]
[1735830826362,3.6337,3489.8,3488.8,0.7172]
[1735830826363,0.4259,3489.8,3488.8,0.7172]
[1735830826668,0.28685,3489.2,3489.1,0.28685]
[1735830826960,0.28685,3489.2,3488.7,3.2078]
[1735830826961,0.28682,3489.5,3489.4,0.28682]
[1735830827170,6.67184788,3489.9,3488.8,0.7172]
[1735830827369,6.67184788,3489.9,3489.2,0.28684]
[1735830827370,0.28684,3489.3,3489.2,0.28684]
[1735830827562,0.28683,3489.4,3489.3,0.28683]
[1735830828368,6.67184788,3489.9,3488.7,3.2078]
[1735830828565,0.28687,3489.0,3488.9,0.28687]
[1735830828764,0.28688,3488.8,3488.7,3.49468]
[1735830828970,0.28687,3489.0,3488.9,0.28687]
[1735830829169,0.71708,3489.4,3488.7,3.2078]
[1735830829170,0.28688,3488.9,3488.8,0.28687]
[1735830829670,0.28688,3488.8,3488.7,3.49468]
[1735830830165,0.28688,3488.8,3488.7,3.2078]
[1735830830366,3.92494,3489.1,3488.3,0.8978]
[1735830830573,0.28691,3488.4,3488.3,1.18472]
[1735830830765,0.28691,3488.4,3488.2,3.2078]
[1735830830766,0.2869,3488.6,3488.5,0.28689]
[1735830831168,3.2078,3488.7,3488.2,3.2078]
[1735830831371,0.28692,3488.3,3488.2,3.49472]
[1735830831570,0.71725,3488.6,3487.8,0.4363]
[1735830831571,0.28695,3488.0,3487.9,0.28695]
[1735830831764,0.28697,3487.7,3487.6,3.49477]
[1735830832073,0.71731,3488.3,3487.3,0.429]
[1735830832074,0.28696,3487.8,3487.7,0.28696]
[1735830832271,0.28693,3488.2,3488.1,0.28694]
[1735830832574,0.28693,3488.2,3487.3,0.429]
[1735830832575,3.2078,3488.7,3487.6,3.92524]
[1735830832769,3.92504,3488.7,3488.1,0.28693]
[1735830832967,4.64765888,3488.8,3487.6,3.2078]
[1735830833276,3.92495,3489.1,3488.0,3.92516]
[1735830833666,0.28689,3488.7,3488.6,0.28689]
[1735830833868,0.2869,3488.6,3488.5,0.2869]
[1735830834175,3.92495,3489.1,3488.0,3.92516]
[1735830834463,0.2869,3488.7,3488.6,0.28689]
[1735830834675,2.41825888,3488.8,3487.7,1.18101]
[1735830834966,0.28692,3488.3,3488.2,0.28692]
[1735830835370,2.41825888,3488.4,3487.6,3.2078]
[1735830835676,0.28695,3488.0,3487.9,0.28694]
[1735830835868,2.41825888,3488.4,3487.7,0.71743]
[1735830836068,0.28693,3488.3,3488.2,0.28692]
[1735830836273,0.28692,3488.4,3487.6,3.2078]
[1735830836470,2.41825888,3488.8,3487.6,3.2078]
[1735830836774,0.2869,3488.6,3488.5,0.2869]
[1735830836974,0.28691,3488.5,3488.4,0.28691]
[1735830837273,0.28691,3488.5,3488.0,3.92516]
[1735830837274,0.28689,3488.7,3488.6,0.28689]
[1735830837868,0.2869,3488.6,3488.5,0.2869]
[1735830838571,0.28688,3488.8,3488.7,0.28688]
[1735830838872,0.28687,3489.0,3488.9,0.28686]
[1735830839273,0.28688,3488.9,3488.8,0.28687]
[1735830839571,0.28688,3488.8,3488.7,0.28688]
[1735830839975,3.2078,3489.1,3488.4,3.2078]
[1735830840166,2.41825888,3488.8,3488.2,0.4224]
[1735830840367,0.28689,3488.7,3488.4,0.28691]
[1735830840673,2.41825888,3488.8,3488.3,0.28691]
[1735830840873,0.28692,3488.4,3488.3,0.28691]
[1735830841375,0.28692,3488.3,3488.2,4.68494122]
[1735830841772,2.41825888,3488.8,3488.0,3.2078]
[1735830841978,2.41825888,3488.8,3488.3,0.28691]
[1735830842170,0.28692,3488.4,3488.3,0.28691]
[1735830842370,0.28693,3488.3,3488.2,0.28692]
[1735830842570,0.28694,3488.1,3488.0,3.2078]
[1735830842874,0.28694,3488.0,3487.9,4.39801122]
[1735830843075,0.28695,3487.9,3487.8,4.39801122]
[1735830843376,0.28695,3488.0,3487.9,0.28695]
[1735830843779,4.94080888,3488.6,3488.1,0.28693]
[1735830843780,0.28693,3488.2,3488.1,0.28693]
[1735830843973,0.28694,3488.1,3487.6,3.2078]
[1735830844181,3.2078,3488.3,3487.6,3.2078]
[1735830844375,0.28694,3488.1,3488.0,0.28694]
[1735830844681,0.28697,3487.8,3487.7,0.28697]
[1735830844879,3.13558888,3488.2,3487.8,0.28695]
[1735830844880,0.28696,3487.9,3487.8,0.28695]
[1735830845074,0.28697,3487.7,3487.6,3.49477]
[1735830845381,2.41825888,3488.2,3487.6,3.2078]
[1735830845579,0.28699,3487.4,3487.3,4.72235783]
[1735830845778,0.28696,3487.8,3487.5,0.28698]
[1735830845984,0.28696,3487.8,3487.3,4.43535783]
[1735830845985,0.28699,3487.5,3487.4,0.28699]
[1735830846276,3.2078,3487.9,3487.3,4.43535783]
[1735830846479,2.41825888,3488.2,3487.3,4.43535783]
[1735830846775,2.25105118,3488.1,3487.4,0.71749]
[1735830846976,2.25105118,3488.1,3488.0,0.28694]
[1735830847873,2.25105118,3488.1,3488.0,3.49474]
[1735830848477,2.53794118,3488.7,3488.0,3.2078]
[1735830848679,2.25105118,3488.7,3488.6,0.28689]
[1735830849176,3.37657677,3488.9,3488.8,0.28688]
[1735830849482,3.37657677,3488.9,3488.8,3.49468]
[1735830849774,0.71694,3490.1,3488.8,3.2078]
[1735830850080,0.71694,3490.1,3488.9,0.9196]
[1735830850379,0.28682,3489.5,3489.4,0.28682]
[1735830850571,0.28682,3489.6,3489.5,0.28682]
[1735830851174,6.58437677,3490.2,3489.2,3.2078]
[1735830851175,3.2078,3490.2,3489.2,3.2078]
[1735830851372,0.28678,3490.1,3490.0,0.28678]
[1735830851571,3.2078,3490.2,3489.9,0.28678]
[1735830851781,0.28678,3490.0,3489.9,0.28678]
[1735830852195,0.28678,3490.0,3489.2,3.2078]
[1735830852196,3.2078,3490.2,3489.2,3.2078]
[1735830852480,0.28681,3489.7,3489.5,0.28682]
[1735830852669,0.28681,3489.7,3489.6,0.28681]
[1735830852873,3.2078,3490.2,3489.6,0.28681]
[1735830853073,0.2868,3489.8,3489.6,0.28681]
[1735830853274,3.2078,3490.2,3489.5,0.28681]
[1735830853476,3.2078,3490.2,3489.2,3.2078]
[1735830853679,0.2868,3489.8,3489.7,0.2868]
[1735830853881,3.2078,3490.2,3489.2,3.2078]
[1735830854083,0.28679,3490.0,3489.9,0.28679]
[1735830855085,0.2868,3489.8,3489.3,0.28684]
[1735830855271,0.28684,3489.3,3489.2,3.2078]
[1735830855473,3.2078,3489.4,3488.8,4.42764188]
[1735830855877,3.2078,3489.4,3489.3,0.28684]
[1735830856086,0.28679,3489.9,3489.8,0.2868]
[1735830856277,0.28679,3489.9,3489.1,0.71713]